bitfinex/quotes_BTCUSD_20250408
["timestamp","ask_amount","ask_price","bid_price","bid_amount"]
[1744133044558,0.613007,76921.0,76920.0,7e-07]
[1744133045006,0.615007,76921.0,76920.0,7e-07]
[1744133045250,0.613007,76921.0,76920.0,7e-07]
[1744133045512,0.83000765,76921.0,76920.0,7e-07]
[1744133045753,0.273031,76914.0,76913.0,2e-07]
[1744133046006,0.273031,76914.0,76913.0,9.9e-07]
[1744133046547,0.273031,76914.0,76899.0,0.0001676]
[1744133046548,0.273081,76900.0,76899.0,5.3e-07]
[1744133046795,0.3289966,76900.0,76899.0,0.00042662]
[1744133047031,0.35278167,76900.0,76899.0,6.2e-07]
[1744133047268,0.013006,76884.0,76883.0,3.2e-07]
[1744133047768,0.03679107,76884.0,76883.0,3.2e-07]
[1744133048764,0.03779107,76884.0,76883.0,3.2e-07]
[1744133049018,0.12832958,76884.0,76883.0,3.2e-07]
[1744133049231,0.03779107,76884.0,76883.0,3.2e-07]
[1744133049707,0.37779107,76884.0,76883.0,3.2e-07]
[1744133050888,0.354006,76884.0,76883.0,3.2e-07]
[1744133051108,0.013007,76879.0,76878.0,0.01282644]
[1744133051300,0.274141,76884.0,76878.0,0.01282644]
[1744133051301,0.001,76884.0,76878.0,0.13908508]
[1744133051491,0.260147,76880.0,76879.0,0.12625864]
[1744133051650,0.613154,76880.0,76879.0,0.12625864]
[1744133052392,0.34,76880.0,76879.0,0.12625864]
[1744133052753,0.6367462,76880.0,76879.0,0.004]
[1744133052978,0.6497532,76880.0,76879.0,0.004]
[1744133053350,0.613152,76880.0,76879.0,0.004]
[1744133053775,0.013007,76879.0,76878.0,0.01282644]
[1744133054622,0.260149,76879.0,76878.0,0.13908508]
[1744133054833,0.013007,76880.0,76878.0,0.13908508]
[1744133054834,0.002,76880.0,76878.0,0.13908508]
[1744133055044,0.275155,76880.0,76879.0,0.12625864]
[1744133055250,0.273155,76880.0,76879.0,0.12625864]
[1744133056075,0.013007,76879.0,76878.0,0.01282644]
[1744133056892,0.013007,76879.0,76878.0,0.01268619]
[1744133057506,0.013007,76879.0,76878.0,0.01568619]
[1744133057946,0.013007,76879.0,76878.0,0.01268619]
[1744133058583,0.01231759,76879.0,76878.0,0.01268619]
[1744133060533,0.43542938,76890.0,76878.0,0.13894483]
[1744133060743,0.260147,76880.0,76879.0,0.12625864]
[1744133060946,0.273154,76880.0,76879.0,0.12625864]
[1744133061392,0.013007,76879.0,76878.0,0.01268619]
[1744133061612,0.014007,76879.0,76878.0,0.01268619]
[1744133061815,0.013007,76879.0,76878.0,0.01868619]
[1744133062468,0.013007,76879.0,76878.0,0.01268619]
[1744133062759,0.013007,76879.0,76878.0,1.9e-07]
[1744133063855,0.014007,76879.0,76878.0,1.9e-07]
[1744133064083,0.013007,76879.0,76878.0,1.9e-07]
[1744133064314,0.014007,76879.0,76878.0,1.9e-07]
[1744133064535,0.015007,76879.0,76878.0,1.9e-07]
[1744133064990,0.015007,76879.0,76876.0,1.9e-07]
[1744133064991,0.013007,76877.0,76876.0,1.9e-07]
[1744133065263,0.27318,76872.0,76871.0,1.9e-07]
[1744133065964,0.273166,76877.0,76871.0,1.9e-07]
[1744133065965,0.260145,76881.0,76871.0,0.12625883]
[1744133066198,0.273177,76873.0,76872.0,0.12886003]
[1744133066428,0.260169,76874.0,76872.0,0.12625864]
[1744133066651,0.43542938,76881.0,76875.0,0.260161]
[1744133066652,0.0024293,76879.0,76875.0,0.260161]
[1744133066936,0.0024293,76879.0,76871.0,1.9e-07]
[1744133066937,0.27318,76872.0,76871.0,1.9e-07]
[1744133067201,0.27318,76872.0,76871.0,0.12625883]
[1744133068149,0.260172,76873.0,76871.0,0.12625883]
[1744133068369,0.27318,76873.0,76872.0,0.12625864]
[1744133069335,0.273166,76876.0,76872.0,0.12625864]
[1744133069559,0.273177,76873.0,76872.0,0.12625864]
[1744133069800,0.260169,76873.0,76872.0,0.12625864]
[1744133070016,0.013007,76877.0,76872.0,0.12625864]
[1744133070251,0.273174,76874.0,76872.0,0.1288601]
[1744133070479,0.013008,76873.0,76872.0,0.002]
[1744133070950,0.013008,76873.0,76872.0,0.003]
[1744133071175,0.27318,76872.0,76871.0,1.9e-07]
[1744133073525,0.27318,76872.0,76871.0,0.00200019]
[1744133073938,0.29708831,76872.0,76871.0,0.00200019]
[1744133074140,0.29708831,76872.0,76871.0,0.13025883]
[1744133074548,0.27318,76872.0,76871.0,0.13025883]
[1744133074752,0.27318,76872.0,76871.0,0.00400019]
[1744133075480,0.013008,76872.0,76871.0,0.13025883]
[1744133075684,0.27318,76872.0,76871.0,0.13025883]
[1744133075855,0.29712698,76872.0,76871.0,0.13025883]
[1744133076611,0.29712698,76872.0,76871.0,0.00400019]
[1744133076826,0.27318,76872.0,76871.0,0.00400019]
[1744133077211,0.27318,76872.0,76871.0,0.13025883]
[1744133078342,0.27318,76872.0,76871.0,0.00400019]
[1744133080802,0.27318,76872.0,76871.0,0.13025883]
[1744133081593,0.27318,76872.0,76871.0,0.00400019]
[1744133082414,0.273174,76874.0,76871.0,0.13025883]
[1744133082621,0.013008,76873.0,76872.0,0.12625864]
[1744133082820,0.273177,76873.0,76872.0,0.12625864]
[1744133083663,0.260169,76873.0,76872.0,0.12625864]
[1744133083997,0.273177,76873.0,76872.0,0.12625864]
[1744133084507,0.273177,76873.0,76872.0,0.12725864]
[1744133085712,0.273162,76878.0,76872.0,0.12725864]
[1744133086062,0.260169,76873.0,76872.0,0.1298601]
[1744133086262,0.260169,76873.0,76872.0,0.12725864]
[1744133086263,0.273177,76873.0,76872.0,0.12725864]
[1744133086414,0.273177,76873.0,76872.0,0.12925864]
[1744133086618,0.260163,76875.0,76872.0,0.12925864]
[1744133086820,0.260166,76874.0,76872.0,0.12825864]
[1744133087018,0.260169,76873.0,76872.0,0.12825864]
[1744133087221,0.0004293,76879.0,76878.0,0.260152]
[1744133087402,0.0004293,76879.0,76878.0,0.39941764]
[1744133087774,0.0004293,76879.0,76878.0,0.12625864]
[1744133087972,0.2605783,76879.0,76878.0,0.12625864]
[1744133088215,0.0004293,76879.0,76878.0,0.33601864]
[1744133088423,0.0004293,76879.0,76878.0,0.59617064]
[1744133088628,0.2605783,76879.0,76878.0,0.33601864]
[1744133088976,0.0004293,76879.0,76878.0,0.33601864]
[1744133089584,0.2735853,76879.0,76878.0,0.33601864]
[1744133089961,0.2735853,76879.0,76878.0,0.33901864]
[1744133090174,0.2735853,76879.0,76878.0,0.34201864]
[1744133091193,0.2735853,76879.0,76878.0,0.13225864]
[1744133091551,0.2735853,76879.0,76878.0,0.006]
[1744133092192,0.2735853,76879.0,76878.0,0.003]
[1744133092395,0.2745853,76879.0,76878.0,0.12925864]
[1744133093079,0.2745853,76879.0,76878.0,0.12625864]
[1744133093080,0.2615783,76879.0,76878.0,0.12625864]
[1744133093320,0.2745853,76879.0,76878.0,0.12625864]
[1744133093723,0.0004293,76879.0,76878.0,0.12625864]
[1744133093892,0.0004293,76879.0,76878.0,0.12725864]
[1744133094099,0.0004293,76879.0,76878.0,0.38741064]
[1744133094281,0.0004293,76879.0,76878.0,0.40041764]
[1744133094477,0.0004293,76879.0,76878.0,0.40141764]
[1744133094697,0.0004293,76879.0,76878.0,0.45071764]
[1744133094931,0.0004293,76879.0,76878.0,0.44871764]
[1744133095150,0.0004293,76879.0,76878.0,0.46325849]
[1744133095302,0.0004293,76879.0,76878.0,0.51075849]
[1744133095484,0.0004293,76879.0,76878.0,0.53707517]
[1744133095891,0.013005,76891.0,76883.0,0.013006]
[1744133096104,0.013004,76896.0,76891.0,0.013005]
[1744133096318,0.0003356,76903.0,76891.0,0.013005]
[1744133096319,0.0003356,76903.0,76895.0,0.13926264]
[1744133096526,0.0003356,76910.0,76909.0,0.013002]
[1744133096727,0.0003356,76910.0,76909.0,0.12625864]
[1744133097331,0.0133376,76910.0,76909.0,0.12625864]
[1744133097737,0.2733816,76910.0,76909.0,0.12638445]
[1744133097933,0.2733816,76910.0,76909.0,0.00012581]
[1744133098398,0.2753816,76910.0,76909.0,8.1e-07]
[1744133100044,0.0023356,76910.0,76909.0,0.59602645]
[1744133100250,0.0023356,76910.0,76909.0,0.60902845]
[1744133100374,0.0023356,76910.0,76909.0,1.63942845]
[1744133100570,0.0023356,76910.0,76909.0,0.15053006]
[1744133100774,0.11507696,76910.0,76909.0,6e-08]
[1744133101021,0.2413356,76910.0,76909.0,6e-08]
[1744133101225,0.013006,76887.0,76886.0,0.11579222]
[1744133101542,0.273127,76887.0,76886.0,0.11579222]
[1744133101893,0.273127,76887.0,76886.0,0.11590431]
[1744133102329,0.013003,76902.0,76888.0,0.013005]
[1744133102528,0.48560066,76910.0,76900.0,0.013003]
[1744133102529,0.013002,76906.0,76900.0,0.013003]
[1744133102682,0.013003,76902.0,76901.0,0.12625864]
[1744133102886,0.260069,76903.0,76901.0,0.12625864]
[1744133102887,0.273072,76903.0,76901.0,0.12625864]
[1744133103106,0.260062,76905.0,76901.0,0.12625864]
[1744133103394,0.013002,76911.0,76901.0,0.12625864]
[1744133103395,0.26007,76903.0,76901.0,0.12625864]
[1744133103597,0.013003,76904.0,76901.0,0.12625864]
[1744133103598,0.260066,76904.0,76901.0,0.12625864]
[1744133103840,0.013003,76902.0,76901.0,0.12625864]
[1744133104022,0.273072,76903.0,76901.0,0.33597864]
[1744133104376,0.013003,76900.0,76899.0,0.01213304]
[1744133104549,0.013003,76900.0,76899.0,4e-08]
[1744133104748,0.013003,76900.0,76899.0,0.12625868]
[1744133105049,0.260075,76901.0,76899.0,0.12625868]
[1744133105250,0.013003,76900.0,76899.0,4e-08]
[1744133105456,0.013003,76900.0,76899.0,0.12625864]
[1744133105932,0.260075,76901.0,76899.0,0.12825864]
[1744133106132,0.013002,76911.0,76900.0,0.33593864]
[1744133106295,0.260069,76903.0,76900.0,0.59601564]
[1744133106510,0.273077,76901.0,76899.0,0.004]
[1744133106711,0.27311,76892.0,76891.0,0.20968]
[1744133106915,0.273127,76887.0,76870.0,1.0304]
[1744133107122,0.273127,76887.0,76877.0,0.20968]
[1744133107779,0.28618645,76887.0,76870.0,0.0001677]
[1744133107982,0.27318,76872.0,76870.0,0.0001677]
[1744133108137,0.27318,76872.0,76871.0,0.00042949]
[1744133110826,0.27418,76872.0,76871.0,0.00042949]
[1744133111042,0.27518,76872.0,76871.0,0.00042949]
[1744133111629,0.015008,76872.0,76871.0,0.00042949]
[1744133112629,0.014008,76872.0,76871.0,0.00042949]
[1744133112897,0.260161,76876.0,76871.0,0.12668813]
[1744133113173,0.273168,76876.0,76872.0,0.12625864]
[1744133113295,0.273168,76876.0,76872.0,0.38642964]
[1744133113705,0.260147,76880.0,76874.0,0.013008]
[1744133114005,0.01305945,76887.0,76883.0,0.013006]
[1744133114310,0.44877006,76890.0,76871.0,0.00242949]
[1744133114311,0.27318,76872.0,76871.0,0.00242949]
[1744133114549,0.27318,76872.0,76871.0,0.00142949]
[1744133114875,0.27318,76872.0,76871.0,0.00042949]
[1744133115576,0.27318,76872.0,76871.0,0.00242949]
[1744133116348,0.27318,76872.0,76859.0,0.021191]
[1744133116349,0.273223,76860.0,76859.0,0.021191]
[1744133116612,0.613223,76860.0,76859.0,0.021191]
[1744133117630,0.613223,76860.0,76859.0,0.026191]
[1744133118171,0.615223,76860.0,76859.0,0.026191]
[1744133118369,0.615223,76860.0,76859.0,0.021191]
[1744133119332,0.273207,76866.0,76859.0,0.021191]
[1744133119333,0.01343744,76872.0,76865.0,0.013009]
[1744133119540,0.00042944,76872.0,76869.0,0.273191]
[1744133119740,0.00042944,76872.0,76871.0,0.273184]
[1744133119943,0.00042944,76872.0,76871.0,0.39944264]
[1744133120145,0.00042944,76872.0,76871.0,0.41398349]
[1744133120701,0.00042944,76872.0,76871.0,0.12625864]
[1744133120902,0.01343744,76872.0,76871.0,0.12625864]
[1744133121107,0.273205,76865.0,76864.0,0.20668]
[1744133121303,0.273205,76865.0,76864.0,0.33293864]
[1744133121502,0.613223,76860.0,76859.0,0.021191]
[1744133122736,0.34,76860.0,76859.0,0.16045964]
[1744133123389,0.34,76860.0,76859.0,0.14744964]
[1744133123623,0.34,76860.0,76859.0,0.14723739]
[1744133123790,0.34,76860.0,76859.0,0.16024739]
[1744133123993,0.35301,76860.0,76859.0,0.14823739]
[1744133124192,0.34,76860.0,76859.0,0.14823739]
[1744133124391,0.34,76860.0,76859.0,0.14723739]
[1744133124616,0.34,76860.0,76859.0,0.14923739]
[1744133124817,0.34801,76860.0,76859.0,0.15223739]
[1744133125224,0.335,76860.0,76859.0,0.15223739]
[1744133125466,0.335,76860.0,76859.0,0.16224739]
[1744133125637,0.335,76860.0,76859.0,0.14923739]
[1744133125781,0.335,76860.0,76859.0,0.14723739]
[1744133125985,0.335,76860.0,76859.0,0.14923739]
[1744133126405,0.335,76860.0,76859.0,0.14723739]
[1744133126620,0.335,76860.0,76859.0,0.15023739]
[1744133126819,0.34801,76860.0,76859.0,0.15023739]
[1744133127069,0.608223,76860.0,76859.0,0.15023739]
[1744133127263,0.608223,76860.0,76859.0,0.15223739]
[1744133127527,0.608223,76860.0,76859.0,0.02597875]
[1744133127755,0.608223,76860.0,76859.0,0.02397875]
[1744133128148,0.69672245,76860.0,76859.0,0.02697875]
[1744133128573,0.72052118,76860.0,76859.0,0.02397875]
[1744133129124,0.76842118,76860.0,76859.0,0.02097875]
[1744133129331,0.76842118,76860.0,76859.0,0.02197875]
[1744133129482,0.67992173,76860.0,76859.0,0.02097875]
[1744133129886,0.68092173,76860.0,76859.0,0.02097875]
[1744133130088,0.67992173,76860.0,76859.0,0.02097875]
[1744133130266,0.67892173,76860.0,76859.0,0.02097875]
[1744133130451,0.67992173,76860.0,76859.0,0.02097875]
[1744133130692,0.8071581,76860.0,76859.0,0.02097875]
[1744133131098,0.8251581,76860.0,76859.0,0.02097875]
[1744133131344,0.69992173,76860.0,76859.0,0.02097875]
[1744133131558,0.65602173,76860.0,76859.0,0.02097875]
[1744133135710,0.32102173,76860.0,76859.0,0.02097875]
[1744133136152,0.297223,76860.0,76859.0,0.02097875]
[1744133136691,0.296223,76860.0,76859.0,0.02097875]
[1744133136935,0.293223,76860.0,76859.0,0.02097875]
[1744133137131,0.31909997,76860.0,76859.0,0.02097875]
[1744133137589,0.31809997,76860.0,76859.0,7.5e-07]
[1744133137796,0.013013,76841.0,76828.0,7e-07]
[1744133138055,0.273333,76829.0,76828.0,7e-07]
[1744133138298,0.273333,76829.0,76820.0,0.10269421]
[1744133138299,0.273347,76825.0,76824.0,0.000128]
[1744133138505,0.273362,76821.0,76820.0,0.10269421]
[1744133138710,0.27334,76828.0,76821.0,0.013017]
[1744133138975,0.04977278,76829.0,76828.0,0.013016]
[1744133138976,0.01288081,76829.0,76828.0,0.013016]
[1744133139185,0.01288081,76829.0,76825.0,0.26033]
[1744133139386,0.00042892,76829.0,76822.0,0.13927564]
[1744133139562,0.02621036,76829.0,76825.0,0.20672]
[1744133139713,0.260328,76827.0,76825.0,0.20672]
[1744133139920,0.00042892,76829.0,76825.0,0.20672]
[1744133140317,0.00042892,76829.0,76826.0,0.33297864]
[1744133140522,0.00042892,76829.0,76827.0,0.260322]
[1744133140718,0.00042892,76829.0,76828.0,0.12625864]
[1744133140920,0.00042892,76829.0,76828.0,0.13927464]
[1744133141551,0.00042892,76829.0,76828.0,0.1418776]
[1744133141762,0.00042892,76829.0,76828.0,0.12625864]
[1744133142592,0.260261,76846.0,76839.0,0.013014]
[1744133142885,0.260261,76846.0,76833.0,0.013015]
[1744133142886,0.013013,76844.0,76840.0,0.12625864]
[1744133143091,0.013015,76833.0,76823.0,0.260337]
[1744133143412,0.013014,76836.0,76829.0,0.34739364]
[1744133143530,0.43576506,76838.0,76831.0,0.013015]
[1744133143736,0.013015,76833.0,76832.0,0.12625864]
[1744133143937,0.260308,76832.0,76829.0,0.20812]
[1744133144131,0.260311,76831.0,76829.0,0.20812]
[1744133144337,0.013014,76840.0,76833.0,0.013015]
[1744133144557,0.013012,76847.0,76836.0,0.273305]
[1744133144890,0.4489327,76846.0,76841.0,0.013013]
[1744133145048,0.0493,76875.0,76858.0,0.260217]
[1744133145236,0.0493,76875.0,76859.0,0.20812]
[1744133145237,0.293223,76860.0,76859.0,0.20812]
[1744133145453,0.02,76860.0,76859.0,0.20812]
[1744133145658,0.02,76860.0,76859.0,0.34738864]
[1744133146265,0.02,76860.0,76859.0,0.34749468]
[1744133146561,0.280213,76860.0,76859.0,0.13616446]
[1744133146779,0.293223,76860.0,76859.0,0.00010604]
[1744133147473,0.02,76860.0,76859.0,0.00110604]
[1744133148015,0.03301,76860.0,76859.0,0.00010604]
[1744133148438,0.03301,76860.0,76859.0,0.00110604]
[1744133148639,0.03301,76860.0,76859.0,0.00010604]
[1744133149312,0.02,76860.0,76859.0,0.12636468]
[1744133149641,0.022,76860.0,76859.0,0.12636468]
[1744133149850,0.022,76860.0,76859.0,0.39959068]
[1744133150257,0.02,76860.0,76859.0,0.41413153]
[1744133150584,0.02,76860.0,76859.0,0.46343153]
[1744133150976,0.260113,76890.0,76886.0,0.273127]
[1744133151208,0.260113,76890.0,76883.0,0.013006]
[1744133151209,0.0131979,76891.0,76888.0,0.12625864]
[1744133151357,0.0003356,76891.0,76888.0,0.13926364]
[1744133151790,0.0003356,76891.0,76888.0,0.15640522]
[1744133151990,0.0003356,76891.0,76888.0,0.56139159]
[1744133152182,0.11253567,76910.0,76902.0,0.28761485]
[1744133152383,0.12553767,76910.0,76902.0,0.14079949]
[1744133152564,0.11253567,76910.0,76902.0,0.15380249]
[1744133153200,0.260051,76908.0,76902.0,0.12625864]
[1744133153523,0.260057,76906.0,76902.0,0.13025864]
[1744133153721,0.11253567,76910.0,76909.0,0.273049]
[1744133153871,0.11253567,76910.0,76909.0,0.39930764]
[1744133154073,0.11253567,76910.0,76909.0,0.60734764]
[1744133154281,0.11253567,76910.0,76909.0,0.68092779]
[1744133154282,0.0023696,76910.0,76909.0,0.68092779]
[1744133154509,0.0023696,76910.0,76909.0,1.71156779]
[1744133155316,0.0023696,76910.0,76909.0,1.66426779]
[1744133155711,0.0023696,76910.0,76909.0,1.66626779]
[1744133156457,0.0023696,76910.0,76909.0,1.45822779]
[1744133156660,0.0023696,76910.0,76909.0,1.66422779]
[1744133156954,0.0023696,76910.0,76909.0,1.37863794]
[1744133157158,0.2624136,76910.0,76909.0,1.37863794]
[1744133157295,0.0023696,76910.0,76909.0,1.39163994]
[1744133157499,0.0023696,76910.0,76909.0,1.66622779]
[1744133158124,0.0023696,76910.0,76909.0,1.65168694]
[1744133158543,0.013001,76916.0,76909.0,1.37863794]
[1744133158748,0.260041,76911.0,76910.0,0.12625864]
[1744133159089,0.273043,76911.0,76910.0,0.12625864]
[1744133159464,0.27311,76892.0,76891.0,0.208]
[1744133159852,0.27312,76889.0,76880.0,0.26274417]
[1744133160053,0.27312,76889.0,76879.0,1.0304]
[1744133160255,0.28605822,76889.0,76879.0,1.0304]
[1744133160471,0.43576506,76901.0,76895.0,0.013004]
[1744133160691,0.43576506,76901.0,76888.0,0.12636468]
[1744133160692,0.260084,76899.0,76896.0,0.12625864]
[1744133160911,0.260087,76898.0,76896.0,0.12625864]
[1744133161319,0.013003,76902.0,76888.0,0.00010604]
[1744133161320,0.260113,76890.0,76888.0,0.00010604]
[1744133161455,0.013005,76889.0,76888.0,0.00010604]
[1744133162106,0.1681496,76889.0,76888.0,4e-08]
[1744133162314,0.1681496,76889.0,76866.0,0.208]
[1744133162315,0.273198,76867.0,76866.0,0.208]
[1744133162517,0.273198,76867.0,76866.0,1.4e-07]
[1744133162728,0.319498,76867.0,76866.0,1.4e-07]
[1744133162903,0.49295664,76867.0,76866.0,1.4e-07]
[1744133163101,0.366698,76867.0,76866.0,1.4e-07]
[1744133163273,0.320398,76867.0,76866.0,1.4e-07]
[1744133163472,0.260186,76868.0,76866.0,0.12625878]
[1744133163731,0.013009,76867.0,76866.0,0.12625878]
[1744133163928,0.013009,76867.0,76866.0,1.4e-07]
[1744133164175,0.0949669,76867.0,76866.0,0.00100014]
[1744133164343,0.1039669,76867.0,76866.0,1.4e-07]
[1744133164763,0.1039669,76867.0,76842.0,0.32379222]
[1744133164764,0.273283,76843.0,76842.0,0.32379222]
[1744133164969,0.273283,76843.0,76842.0,0.32391839]
[1744133165172,0.013011,76858.0,76849.0,0.260248]
[1744133165401,0.26027,76844.0,76842.0,0.32391839]
[1744133165548,0.26027,76844.0,76843.0,0.12625864]
[1744133165772,0.260266,76845.0,76843.0,0.12625864]
[1744133165969,0.013013,76844.0,76843.0,0.12625864]
[1744133166173,0.273283,76843.0,76842.0,0.32391839]
[1744133166739,0.013013,76843.0,76842.0,0.32491839]
[1744133166889,0.013013,76843.0,76842.0,0.11691839]
[1744133167090,0.013013,76843.0,76841.0,3.9e-07]
[1744133167091,0.273287,76842.0,76841.0,3.9e-07]
[1744133167294,0.320487,76842.0,76841.0,0.00012645]
[1744133167639,0.45975317,76842.0,76841.0,4.5e-07]
[1744133167754,0.273333,76829.0,76828.0,0.0001678]
[1744133167954,0.273333,76829.0,76828.0,0.00029386]
[1744133168286,0.31836038,76829.0,76828.0,0.00029386]
[1744133168786,0.273333,76829.0,76828.0,0.00029386]
[1744133169021,0.275333,76829.0,76828.0,0.00029386]
[1744133169302,0.273333,76829.0,76828.0,0.00029386]
[1744133169538,0.260293,76837.0,76829.0,0.013015]
[1744133169761,0.273305,76837.0,76830.0,0.13927364]
[1744133170016,0.013014,76836.0,76830.0,0.12625864]
[1744133170244,0.013015,76831.0,76830.0,0.12625864]
[1744133170676,0.013015,76829.0,76828.0,0.00129386]
[1744133171048,0.01184414,76829.0,76828.0,0.00129386]
[1744133171627,0.260314,76830.0,76828.0,0.00129386]
[1744133171836,0.001,76836.0,76831.0,0.260309]
[1744133172063,0.001,76836.0,76832.0,0.12625864]
[1744133172402,0.001,76836.0,76828.0,0.27363086]
[1744133172403,0.013015,76829.0,76828.0,0.20757386]
[1744133172612,0.260318,76829.0,76828.0,0.1265525]
[1744133172798,0.001,76836.0,76835.0,0.273312]
[1744133173002,0.260242,76852.0,76846.0,0.013013]
[1744133173145,0.260294,76836.0,76835.0,0.12625864]
[1744133173325,0.43576506,76845.0,76835.0,0.13927264]
[1744133173526,0.013011,76856.0,76849.0,0.013012]
[1744133173731,0.260231,76855.0,76851.0,0.013012]
[1744133174061,0.013011,76856.0,76848.0,0.013012]
[1744133174062,0.013011,76854.0,76852.0,0.12625864]
[1744133174243,0.260234,76855.0,76852.0,0.12625864]
[1744133174448,0.013011,76853.0,76852.0,0.12625864]
[1744133174795,0.013011,76853.0,76845.0,0.20728]
[1744133174796,0.273273,76846.0,76845.0,0.20728]
[1744133174994,0.013013,76841.0,76832.0,0.20728]
[1744133175190,0.260294,76836.0,76835.0,0.009]
[1744133175351,0.260276,76842.0,76835.0,0.12625864]
[1744133175554,0.260276,76842.0,76830.0,0.013015]
[1744133175555,0.013015,76829.0,76828.0,1.23845386]
[1744133175757,0.43576506,76838.0,76829.0,0.273329]
[1744133175959,0.013015,76834.0,76830.0,0.12625864]
[1744133176286,0.013015,76829.0,76828.0,0.00029386]
[1744133176615,0.013015,76829.0,76828.0,0.1265525]
[1744133177232,0.43576506,76850.0,76840.0,0.013014]
[1744133177443,0.59125329,76860.0,76854.0,0.273241]
[1744133177641,0.59125329,76860.0,76841.0,0.33618113]
[1744133177642,0.59125329,76860.0,76841.0,0.20732]
[1744133177812,0.048,76877.0,76841.0,0.20732]
[1744133177813,0.260254,76848.0,76842.0,0.12625864]
[1744133178015,0.273266,76849.0,76842.0,0.12625864]
[1744133178225,0.59125329,76860.0,76854.0,0.013011]
[1744133178418,0.013009,76866.0,76859.0,0.260214]
[1744133178618,0.013009,76864.0,76860.0,0.12625864]
[1744133178783,0.273218,76862.0,76860.0,0.12625864]
[1744133178982,0.01301,76861.0,76860.0,0.12625864]
[1744133179183,0.273283,76843.0,76842.0,0.00712606]
[1744133179673,0.59125329,76852.0,76847.0,0.013012]
[1744133179802,0.01284958,76869.0,76867.0,0.260189]
[1744133180003,0.273195,76868.0,76867.0,0.12625864]
[1744133180629,0.273219,76861.0,76860.0,0.002]
[1744133181064,0.273219,76861.0,76846.0,0.220333]
[1744133181065,0.013012,76849.0,76846.0,0.20732]
[1744133181242,0.273267,76848.0,76847.0,0.12625864]
[1744133181439,0.273267,76848.0,76846.0,0.00012606]
[1744133181440,0.013012,76847.0,76846.0,0.00012606]
[1744133181640,0.013012,76847.0,76846.0,6e-08]
[1744133182443,0.13927064,76847.0,76846.0,6e-08]
[1744133182645,0.013012,76847.0,76846.0,6e-08]
[1744133182825,0.03662717,76847.0,76846.0,6e-08]
[1744133183442,0.013012,76847.0,76846.0,6e-08]
[1744133184063,0.273333,76829.0,76828.0,0.0001678]
[1744133184301,0.273333,76829.0,76828.0,0.00029361]
[1744133184885,0.260315,76830.0,76828.0,0.00029361]
[1744133185098,0.013015,76829.0,76828.0,0.12655225]
[1744133185309,0.001,76829.0,76828.0,0.12655225]
[1744133185691,0.274333,76829.0,76828.0,0.00029361]
[1744133185893,0.275333,76829.0,76828.0,0.00029361]
[1744133186267,0.273333,76829.0,76828.0,0.00029361]
[1744133186646,0.321733,76829.0,76828.0,6.1e-07]
[1744133186865,0.325733,76829.0,76828.0,6.1e-07]
[1744133187050,0.34942567,76829.0,76828.0,6.1e-07]
[1744133187289,0.34542567,76829.0,76828.0,6.1e-07]
[1744133187467,0.34542567,76829.0,76828.0,0.00100061]
[1744133187468,0.29702567,76829.0,76828.0,0.00100061]
[1744133188022,0.29702567,76829.0,76828.0,6.1e-07]
[1744133188212,0.35106152,76829.0,76828.0,6.1e-07]
[1744133188421,0.35306152,76829.0,76828.0,6.1e-07]
[1744133188610,0.30202567,76829.0,76828.0,6.1e-07]
[1744133189039,0.31390797,76829.0,76828.0,6.1e-07]
[1744133189471,0.31190797,76829.0,76828.0,6.1e-07]
[1744133189668,0.43816661,76829.0,76828.0,6.1e-07]
[1744133189867,0.44216661,76829.0,76828.0,6.1e-07]
[1744133190205,0.44216661,76829.0,76810.0,0.001]
[1744133190206,0.0479,76813.0,76810.0,2e-08]
[1744133190404,0.013018,76811.0,76810.0,2e-08]
[1744133190643,0.013018,76811.0,76810.0,0.00042894]
[1744133190879,0.03671067,76811.0,76810.0,0.00042894]
[1744133192026,0.02869267,76811.0,76810.0,0.01344794]
[1744133192155,0.02869267,76811.0,76810.0,0.13970658]
[1744133192353,0.04171067,76811.0,76810.0,0.00042894]
[1744133193165,0.12659774,76811.0,76810.0,0.00042894]
[1744133193390,0.273433,76801.0,76800.0,0.3305518]
[1744133194021,0.273433,76801.0,76800.0,0.01666237]
[1744133194022,0.29712567,76801.0,76800.0,0.01666237]
[1744133194230,0.29712567,76801.0,76789.0,0.0001674]
[1744133194231,0.319072,76790.0,76789.0,0.0001674]
[1744133194767,0.613505,76781.0,76780.0,9e-08]
[1744133195253,0.63607579,76781.0,76780.0,0.12625873]
[1744133195454,0.63607579,76781.0,76780.0,9e-08]
[1744133195455,0.64909979,76781.0,76780.0,9e-08]
[1744133196034,0.39061879,76781.0,76780.0,9e-08]
[1744133196191,0.65152889,76781.0,76780.0,9e-08]
[1744133196393,0.63962677,76781.0,76780.0,9e-08]
[1744133196590,0.65271388,76781.0,76780.0,9e-08]
[1744133196791,0.63202121,76781.0,76780.0,9e-08]
[1744133197020,0.74992203,76781.0,76780.0,9e-08]
[1744133197216,0.260555,76759.0,76754.0,0.0001674]
[1744133197419,0.273588,76758.0,76756.0,0.12625864]
[1744133197620,0.013028,76757.0,76756.0,0.12625864]
[1744133197818,0.013027,76763.0,76756.0,0.12625864]
[1744133197819,0.59125329,76770.0,76760.0,0.013027]
[1744133198066,0.013027,76759.0,76758.0,0.0001676]
[1744133198282,0.260536,76765.0,76758.0,0.12642624]
[1744133198457,0.260544,76763.0,76759.0,0.12625864]
[1744133198662,0.273571,76763.0,76759.0,0.12625864]
[1744133198864,0.260547,76762.0,76759.0,0.12625864]
[1744133199070,0.00042884,76763.0,76759.0,0.13928564]
[1744133199215,0.00042884,76763.0,76759.0,0.38681264]
[1744133199411,0.260552,76760.0,76759.0,0.12625864]
[1744133199626,0.013027,76759.0,76758.0,0.0001676]
[1744133199855,0.353027,76759.0,76758.0,0.0001676]
[1744133200049,0.447527,76759.0,76758.0,6e-07]
[1744133200257,0.45933431,76759.0,76758.0,6e-07]
[1744133200568,0.01303,76744.0,76718.0,1.0]
[1744133200773,0.273646,76741.0,76718.0,1.0]
[1744133200973,0.273646,76741.0,76721.0,0.26328753]
[1744133201171,0.273646,76741.0,76718.0,1.0]
[1744133201373,0.30994628,76741.0,76730.0,0.013032]
[1744133201571,0.30994628,76741.0,76728.0,0.260658]
[1744133201771,0.30994628,76741.0,76740.0,0.0051]
[1744133201973,0.62633477,76741.0,76740.0,0.0051]
[1744133202197,0.62633477,76741.0,76740.0,0.0001]